bitfinex/quotes_ETHUSD_20220105
["timestamp","ask_amount","ask_price","bid_price","bid_amount"]
[1641419727507,0.70069,3569.3,3569.1,0.00284211]
[1641419727904,0.70069,3569.3,3568.8,6.17]
[1641419727905,2.10226,3569.3,3568.8,6.17]
[1641419728105,1.40166,3569.0,3568.8,6.17]
[1641419728305,1.40166,3569.0,3568.8,6.13113685]
[1641419728507,0.70081,3568.9,3568.8,6.13113685]
[1641419728906,0.70081,3568.9,3568.5,0.52192552]
[1641419729106,0.7007948,3568.8,3568.5,0.52192552]
[1641419729306,0.7007948,3568.8,3568.6,0.00170527]
[1641419729509,0.70077,3568.9,3568.6,0.00170527]
[1641419730106,0.70077,3568.9,3568.6,0.00284767]
[1641419730607,0.70077,3568.9,3568.7,0.00113685]
[1641419730808,1.40153,3568.9,3568.7,0.00113685]
[1641419731219,0.70077,3568.9,3568.7,0.00113685]
[1641419732430,1.40152,3568.9,3568.7,0.00113685]
[1641419732826,1.10152,3568.9,3568.7,0.00113685]
[1641419733629,10.75570223,3568.8,3568.7,0.00113685]
[1641419733929,12.07705866,3568.8,3568.7,0.00113685]
[1641419734330,12.07705866,3568.8,3567.5,6.17]
[1641419734331,7.55,3568.7,3567.5,6.17]
[1641419734531,0.70095,3568.1,3567.5,6.17]
[1641419734866,0.70095,3568.1,3567.6,0.00625266]
[1641419735474,0.70096,3567.9,3567.6,0.00625266]
[1641419735673,0.70099,3567.8,3567.6,0.00625266]
[1641419736473,0.70099,3567.8,3567.5,6.12625266]
[1641419737079,0.70099,3567.8,3567.2,6.17]
[1641419737275,0.70102,3567.5,3567.2,6.17]
[1641419737474,0.35102,3567.5,3567.3,0.00170527]
[1641419738476,1.05206,3567.5,3567.3,0.00170527]
[1641419740237,1.24116,3567.5,3567.3,0.00170527]
[1641419740637,0.7011,3567.3,3567.0,0.00341054]
[1641419740935,1.40221,3567.3,3567.0,0.00341054]
[1641419741135,0.70123,3567.1,3566.9,0.7194616]
[1641419741336,8.128,3567.0,3566.9,0.7194616]
[1641419741733,8.078,3567.0,3566.2,0.47453457]
[1641419741934,1.4025799,3566.7,3565.5,7.5472]
[1641419742138,1.4025799,3566.7,3564.8,11.5821]
[1641419742139,0.328,3566.6,3566.3,0.00397896]
[1641419742372,1.40266,3566.5,3566.3,0.00397896]
[1641419742575,1.40266,3566.5,3565.1,2.28038334]
[1641419742780,1.40266,3566.5,3566.0,0.50045681]
[1641419743177,2.10395,3566.2,3566.1,0.00511581]
[1641419743378,2.43195,3566.2,3566.1,0.00511581]
[1641419743577,5.33195,3566.2,3565.3,0.0096632]
[1641419743778,5.3319593,3566.2,3565.1,0.01080004]
[1641419743987,2.4319593,3566.2,3565.1,0.01080004]
[1641419744178,1.40266,3566.5,3565.1,0.01080004]
[1641419744179,0.70127,3566.3,3565.1,0.01080004]
[1641419744379,0.70127,3566.3,3566.1,1.36044064]
[1641419744581,2.10398,3566.9,3566.1,1.36044064]
[1641419744879,0.328,3567.1,3566.2,0.00454738]
[1641419745079,0.328,3567.1,3567.0,0.60013302]
[1641419745281,0.328,3567.1,3566.2,0.00454738]
[1641419745282,1.02913,3567.1,3566.2,0.00454738]
[1641419745479,0.70119,3566.7,3566.2,0.00454738]
[1641419745678,1.02913,3567.1,3565.2,16.69]
[1641419745679,0.70113,3567.1,3565.8,0.01269936]
[1641419745882,1.40222,3567.3,3565.8,0.01269936]
[1641419746127,1.40222,3567.3,3565.4,0.26895201]
[1641419746324,0.70795108,3567.1,3566.2,1.41638581]
[1641419746529,0.00682108,3567.1,3566.3,3.09365122]
[1641419746726,0.00097823,3567.4,3566.4,1.0]
[1641419746727,0.00625265,3567.0,3566.4,1.0]
[1641419746924,0.00625265,3567.0,3566.4,3.86061794]
[1641419747127,0.00568423,3566.9,3566.6,0.01232989]
[1641419747327,0.00568423,3566.9,3566.6,2.54608569]
[1641419747526,0.00097823,3567.4,3566.6,2.54608569]
[1641419747527,0.00511581,3566.8,3566.6,0.31232989]
[1641419747728,0.00511581,3566.8,3566.7,8.85]
[1641419747930,0.00097823,3567.4,3566.7,8.85]
[1641419748327,0.00097823,3567.4,3567.3,1.41967738]
[1641419748528,0.00097823,3567.4,3566.3,0.46285382]
[1641419748529,0.00097823,3567.4,3565.6,0.0120774]
[1641419748530,9.85097823,3567.4,3565.6,0.0120774]
[1641419748728,0.01271058,3567.1,3565.9,0.328]
[1641419748928,9.85950458,3567.4,3565.4,0.328]
[1641419748929,0.01208041,3566.2,3565.4,0.328]
[1641419749127,0.01208041,3566.2,3565.4,1.72992]
[1641419749329,0.00341054,3566.1,3565.4,0.328]
[1641419749733,0.00284212,3566.0,3565.4,0.328]
[1641419750186,0.0022737,3565.9,3565.5,0.23355473]
[1641419750586,0.00170527,3565.8,3565.0,0.328]
[1641419750981,0.00113685,3565.7,3565.1,0.00227369]
[1641419751386,0.00852635,3567.0,3565.1,0.00227369]
[1641419751683,0.7011909,3566.5,3565.1,0.00227369]
[1641419752085,0.00511581,3566.4,3565.1,0.00227369]
[1641419752285,0.00511581,3566.4,3565.2,0.6046851]
[1641419752484,0.00130382,3565.8,3565.2,0.6046851]
[1641419752685,0.00130382,3565.8,3565.3,0.00113685]
[1641419752885,0.00130382,3565.8,3565.3,16.24113685]
[1641419752886,0.00113685,3565.7,3565.3,16.24113685]
[1641419753087,0.00113685,3565.7,3565.4,1.0]
[1641419753486,0.00113685,3565.7,3565.3,0.30113685]
[1641419753920,0.00113685,3565.7,3565.3,16.54113685]
[1641419754121,0.00113685,3565.7,3565.4,1.0]
[1641419754326,0.00113685,3565.7,3565.6,1.1748233]
[1641419754527,0.00113685,3565.7,3565.3,0.00113685]
[1641419754726,0.00017343,3565.8,3565.3,0.00113685]
[1641419754925,0.00017343,3565.8,3565.3,0.0022737]
[1641419755732,3.10331,3567.3,3565.5,0.01248756]
[1641419755733,1.0,3567.3,3565.5,0.01248756]
[1641419755927,1.24972228,3567.5,3565.6,0.328]
[1641419756126,0.0073895,3567.0,3565.6,0.328]
[1641419756326,0.0073895,3567.0,3565.7,3.52866736]
[1641419756527,0.00682108,3566.9,3565.8,16.24]
[1641419756728,0.00682108,3566.9,3566.3,1.27431342]
[1641419756926,1.24972228,3567.7,3566.4,3.57143268]
[1641419756927,0.00625266,3566.8,3566.4,3.57143268]
[1641419757131,0.00625266,3566.8,3566.5,1.70085]
[1641419757369,0.00568423,3566.7,3566.6,7.85]
[1641419757573,0.00568423,3566.7,3566.6,8.85]
[1641419757771,0.63026164,3568.0,3567.0,1.30014273]
[1641419757971,0.63026164,3568.0,3567.9,0.56739594]
[1641419758574,0.63026164,3568.0,3567.3,3.04812892]
[1641419758775,0.63026164,3568.0,3567.3,3.25941882]
[1641419758973,0.00170527,3567.9,3567.4,1.00113684]
[1641419759373,0.00113685,3567.8,3567.4,1.00113684]
[1641419759574,0.00113685,3567.8,3567.5,0.44707093]
[1641419759977,0.00113685,3567.8,3567.4,1.42752832]
[1641419760377,0.00113685,3567.8,3567.4,1.72752832]
[1641419760576,0.00113685,3567.8,3567.4,2.42752832]
[1641419760776,0.00113685,3567.8,3567.4,1.72752832]
[1641419760979,0.00113685,3567.8,3567.5,1.42639148]
[1641419762031,0.00113685,3567.8,3567.7,1.42639148]
[1641419762228,0.63026164,3568.0,3567.7,1.42639148]
[1641419762229,0.62579805,3568.0,3567.7,1.42639148]
[1641419762631,3.06702635,3567.9,3567.7,1.42639148]
[1641419762835,2.02795805,3568.0,3567.4,1.42752832]
[1641419763030,3.43000845,3568.0,3567.4,1.42752832]
[1641419763229,0.328,3567.9,3567.5,0.00170527]
[1641419763632,1.02909,3567.9,3567.8,0.00113812]
[1641419764229,8.87909,3567.9,3567.8,0.00113812]
[1641419765671,11.97747721,3567.9,3567.8,0.00113812]
[1641419765872,28.21747721,3567.9,3567.8,3.812e-05]
[1641419766072,28.51747721,3567.9,3567.8,3.812e-05]
[1641419766273,7.85,3567.8,3567.5,0.00170527]
[1641419766471,7.58587401,3567.7,3567.5,0.00170527]
[1641419766672,1.402416,3567.4,3567.0,0.00454739]
[1641419766874,0.328,3567.3,3567.0,0.00454739]
[1641419767476,0.628,3567.3,3567.1,1.785e-05]
[1641419767677,0.628,3567.3,3567.0,4.739e-05]
[1641419767678,7.85,3567.1,3567.0,4.739e-05]
[1641419767875,2.10395,3566.9,3566.4,1.42639148]
[1641419768074,0.328,3566.8,3566.4,1.42639148]
[1641419768476,0.328,3566.8,3565.4,0.435779]
[1641419768723,0.70131,3566.4,3565.4,0.435779]
[1641419768926,0.70131,3566.4,3565.5,0.00857374]
[1641419769721,0.70131,3566.2,3565.5,0.00857374]
[1641419769922,0.7013086,3565.9,3565.5,0.00857374]
[1641419770321,0.7013086,3565.9,3564.6,1.40253]
[1641419770322,0.7013086,3565.9,3564.8,0.70128]
[1641419770722,0.7013086,3565.9,3564.9,0.01198428]
[1641419770922,0.701244,3566.2,3565.0,1.18054717]
[1641419771122,2.10391,3566.7,3565.0,1.18054717]
[1641419771123,3.7595,3566.7,3565.0,1.18054717]
[1641419771326,3.7595,3566.7,3565.1,0.01084743]
[1641419771525,3.7595,3566.7,3565.5,0.70114]
[1641419771724,3.7595,3566.7,3565.5,0.25114]
[1641419771923,3.7595,3566.7,3565.6,0.00800531]
[1641419772128,3.7595,3566.7,3566.5,0.51332782]
[1641419772373,0.7010931,3566.9,3565.6,0.00800531]
[1641419772573,5.6382878,3567.1,3566.6,0.00232108]
[1641419772773,5.6382878,3567.1,3565.5,1.00115]
[1641419772979,5.6382878,3567.1,3565.6,0.00800531]
[1641419773377,1.7302878,3567.1,3566.1,0.48786632]
[1641419773581,0.7011286,3566.7,3566.1,0.48786632]
[1641419773777,1.402362,3566.8,3566.2,0.00459477]
[1641419773978,0.328,3567.1,3566.2,0.00459477]
[1641419774981,2.1036077,3566.7,3566.2,0.00459477]
[1641419775182,0.7012612,3566.5,3566.2,0.00459477]
[1641419775382,0.7012612,3566.5,3564.9,1.40239]
[1641419775383,0.7012612,3566.5,3565.4,0.00914216]
[1641419775581,7.00410545,3566.6,3565.0,0.01141586]
[1641419775981,8.40671015,3566.6,3566.3,0.0012016]
[1641419776223,2.8052224,3566.5,3566.3,0.0012016]
[1641419776425,2.8052224,3566.5,3566.4,0.00345793]
[1641419776622,2.1039124,3566.5,3566.4,0.00345793]
[1641419776825,0.7013024,3566.5,3566.4,0.00345793]
[1641419777626,1.0013024,3566.5,3566.4,0.00345793]
[1641419777926,9.5526124,3566.5,3566.4,0.00345793]
[1641419778428,9.5526124,3566.5,3566.4,0.45781007]
[1641419778625,9.2526124,3566.5,3566.4,0.45781007]
[1641419779228,9.8526124,3566.5,3566.4,0.45781007]
[1641419779880,9.2526124,3566.5,3566.4,0.45781007]
[1641419780080,9.2526124,3566.5,3566.4,0.00345793]
[1641419781384,9.5526124,3566.5,3566.4,0.00345793]
[1641419781581,9.2526124,3566.5,3566.4,0.00345793]
[1641419781985,9.5526124,3566.5,3566.4,0.00345793]
[1641419782785,12.68566197,3566.5,3566.4,0.00345793]
[1641419783624,12.68566197,3566.5,3566.4,5.793e-05]
[1641419783625,14.93538425,3566.5,3566.4,5.793e-05]
[1641419783826,0.55286639,3565.9,3565.2,1.42639148]
[1641419784026,1.4028061,3565.7,3565.2,1.42639148]
[1641419784226,0.70141,3565.7,3565.3,0.00625266]
[1641419785028,0.70141,3565.7,3565.2,0.00682108]
[1641419785229,1.40284,3565.7,3565.2,0.00682108]
[1641419785633,1.40284,3565.7,3565.4,0.44502498]
[1641419785831,0.701406,3565.6,3565.4,0.44502498]
[1641419786031,0.701406,3565.6,3565.5,0.00511581]
[1641419786731,0.701406,3565.6,3565.4,0.00568423]
[1641419787031,0.701406,3565.6,3565.5,0.00118598]
[1641419787234,0.701406,3565.6,3565.5,0.44621096]
[1641419787472,0.701406,3565.6,3565.5,0.45132677]
[1641419788272,0.701406,3565.6,3565.5,0.00630179]
[1641419788470,3.93374904,3565.6,3564.8,1.87141646]
[1641419788670,2.1046861,3565.2,3564.8,1.87141646]
[1641419788869,7.85,3565.0,3564.8,1.292827]
[1641419789068,7.85,3564.9,3563.5,4.75556233]
[1641419789270,3.04864434,3564.8,3564.2,2.85313513]
[1641419789472,1.98398,3564.8,3564.4,0.00284212]
[1641419789670,1.98398,3564.8,3564.4,4.212e-05]
[1641419789671,0.70167,3564.6,3564.4,4.212e-05]
[1641419789874,0.70167,3564.6,3563.4,4.75556233]
[1641419789875,7.85,3564.4,3563.4,4.75556233]
[1641419790072,0.328,3564.3,3563.4,4.75556233]
[1641419790274,7.85,3564.0,3562.7,0.45]
[1641419790473,9.022,3564.0,3562.7,0.45]
[1641419790672,9.022,3564.0,3562.8,0.00397896]
[1641419790673,0.70193,3563.4,3562.8,0.00397896]
[1641419790876,0.7018856,3563.2,3562.9,0.48966936]
[1641419791324,0.7018856,3563.2,3563.0,0.00284211]
[1641419793029,0.7018856,3563.2,3562.7,0.4]
[1641419793229,0.70207,3563.0,3562.8,3.685e-05]
[1641419793430,0.70207,3563.0,3561.1,3.7077]
[1641419793431,7.85,3562.7,3561.1,3.7077]
[1641419793629,7.85,3562.7,3560.6,6.17424217]
[1641419793630,0.7021915,3562.0,3560.6,6.17424217]
[1641419793833,1.5338,3562.0,3561.2,0.00909478]
[1641419794231,0.65218,3561.9,3561.2,0.00909478]
[1641419794431,1.4044411,3561.5,3561.2,0.00909478]
[1641419794878,2.1066601,3561.5,3561.2,0.00909478]
[1641419795082,2.1066601,3561.5,3561.1,0.0096632]
[1641419795479,0.6012,3562.0,3561.1,0.0096632]
[1641419795680,0.1743,3562.1,3561.1,0.0096632]
[1641419796079,0.7021303,3561.7,3561.1,0.0096632]
[1641419797688,1.4044499,3561.5,3561.1,0.0096632]
[1641419797883,1.4044499,3561.5,3561.2,0.00159901]
[1641419798285,1.4044499,3561.5,3561.3,0.00852635]
[1641419800926,0.34005264,3561.4,3560.3,2.78305034]
[1641419801128,0.01249684,3560.6,3560.3,2.78305034]
[1641419801324,0.70251,3560.5,3560.4,0.00511581]
[1641419801527,8.55251,3560.5,3559.5,4.76281452]
[1641419801924,8.55251,3560.5,3559.6,0.00454739]
[1641419802130,1.4050701,3560.2,3559.6,0.00454739]
[1641419802375,0.70254,3560.0,3559.5,4.76281452]
[1641419802576,0.7026701,3559.8,3559.5,4.76281452]
[1641419802776,1.6330701,3559.8,3559.5,4.76281452]
[1641419803376,0.70266,3559.7,3559.5,4.76281452]
[1641419803577,0.70266,3559.7,3559.5,2.86241452]
[1641419803878,0.3,3559.6,3559.5,2.86241452]
[1641419804376,0.3,3559.6,3558.3,3.58187612]
[1641419804377,0.7027625,3559.5,3558.3,3.58187612]
[1641419804578,1.0308,3559.4,3558.3,3.58187612]
[1641419804978,6.30279,3559.3,3558.3,3.58187612]
[1641419805178,6.60279,3559.3,3558.3,3.58187612]
[1641419805377,0.7027661,3558.9,3558.7,0.46104133]
[1641419805581,1.4056,3559.5,3558.7,0.46104133]
[1641419805582,1.0,3559.8,3558.7,0.46104133]
[1641419805780,0.00170527,3559.9,3558.7,0.41331502]
[1641419805981,0.00284212,3559.7,3558.7,0.41331502]
[1641419806225,0.27639993,3560.1,3558.7,0.41331502]
[1641419806226,0.00568423,3559.8,3558.7,0.41331502]
[1641419806426,0.00454739,3559.6,3559.5,0.4632626]
[1641419806627,0.00511581,3559.7,3559.5,0.4632626]
[1641419806828,0.00454739,3559.6,3559.5,0.4632626]
[1641419807030,0.00682108,3559.6,3559.5,0.4632626]
[1641419807235,0.00454739,3559.6,3559.5,0.4632626]
[1641419807433,1.26675295,3560.7,3559.5,0.82881159]
[1641419807434,1.17130034,3560.7,3559.5,0.82881159]
[1641419807632,1.17130034,3560.7,3559.6,3.19262547]
[1641419807832,0.00568423,3560.6,3560.5,1.17333969]
[1641419808535,8.309e-05,3561.0,3560.6,7.85]
[1641419808736,3.88307303,3561.8,3560.7,8.40200999]
[1641419808933,1.82996371,3561.9,3560.8,3.95]
[1641419808934,1.38166898,3561.9,3560.8,3.95]
[1641419809136,1.38166898,3561.9,3560.9,1.0]
[1641419809332,0.00454739,3561.7,3560.7,1.85200999]
[1641419809532,0.00454739,3561.7,3560.7,0.85200999]
[1641419809732,0.00397897,3561.6,3560.7,0.85200999]
[1641419810173,3.9315,3562.8,3560.8,1.37978858]
[1641419810174,0.00341054,3561.5,3560.8,1.37978858]
[1641419810574,0.00284212,3561.4,3560.8,1.37978858]
[1641419810980,0.0022737,3561.3,3560.8,1.37978858]
[1641419811174,0.0022737,3561.3,3560.8,2.37978858]
[1641419811376,0.00170527,3561.2,3560.8,2.37978858]
[1641419811578,0.00170527,3561.2,3560.8,2.67978858]
[1641419811777,0.00113685,3561.1,3560.8,2.67978858]
[1641419811977,0.00113685,3561.1,3560.8,2.37978858]
[1641419812181,0.00682108,3562.1,3560.8,2.37978858]
[1641419812383,0.00682108,3562.1,3561.7,1.41476242]
[1641419812581,0.00625266,3562.0,3560.9,1.0]
[1641419812781,0.00625266,3562.0,3560.8,1.0]
[1641419812980,0.00568424,3561.9,3560.7,0.628]
[1641419813182,0.00568424,3561.9,3560.7,0.328]
[1641419813382,0.00511581,3561.8,3560.7,0.328]
[1641419813623,0.00511581,3561.8,3560.5,1.8]
[1641419813624,0.00511581,3561.8,3560.4,1.19986963]
[1641419813825,0.00511581,3561.8,3561.5,0.43589968]
[1641419814021,0.00511581,3561.8,3560.8,0.18959113]
[1641419814422,0.7023583,3561.4,3560.8,0.18959113]
[1641419814622,0.70242,3561.1,3560.8,0.18959113]
[1641419814822,2.1072007,3561.1,3560.8,0.18959113]
[1641419815022,2.8096007,3561.1,3560.8,0.18959113]
[1641419815221,2.8096007,3561.1,3560.7,0.5998509]
[1641419815422,0.3,3561.0,3560.7,0.5998509]
[1641419815625,0.7023904,3561.0,3560.7,0.5998509]
[1641419815824,0.0022737,3561.3,3560.7,0.5998509]
[1641419816225,0.00170527,3561.2,3560.7,0.5998509]
[1641419816722,0.00113685,3561.1,3560.7,1.7195843]
[1641419817126,0.7022124,3561.6,3560.7,2.0195843]
[1641419817127,0.00397897,3561.6,3560.7,2.0195843]
[1641419817375,0.00397897,3561.6,3560.8,0.19697141]
[1641419817675,1.40419,3562.6,3560.8,0.19697141]
[1641419817676,0.00341054,3561.5,3560.8,0.19697141]
[1641419818078,0.7020661,3562.2,3560.8,0.19697141]
[1641419818276,1.69982176,3562.0,3560.9,0.00341054]
[1641419818675,3.10422596,3562.0,3560.9,0.00341054]
[1641419819078,3.10422596,3562.0,3561.5,0.43151878]
[1641419819279,0.70218,3561.8,3561.5,0.43151878]
[1641419819679,6.5250501,3561.6,3561.5,0.43151878]
[1641419819877,6.5250501,3561.6,3561.0,0.19838627]
[1641419820278,6.5250501,3561.6,3561.1,0.00227369]
[1641419820880,0.7022108,3561.5,3561.2,0.47341178]
[1641419821125,1.4044508,3561.5,3561.2,0.47341178]
[1641419821325,1.4044508,3561.5,3561.3,0.00113684]
[1641419822527,2.6795009,3561.5,3561.3,0.00113684]
[1641419823229,1.9772609,3561.5,3561.3,0.00113684]
[1641419823427,1.2750501,3561.5,3561.3,0.00113684]
[1641419824031,1.97684791,3561.8,3561.3,0.00113684]
[1641419824228,1.97684791,3561.8,3561.4,1.23445783]
[1641419824428,1.69982176,3561.8,3561.4,1.23445783]
[1641419824629,1.69982176,3561.8,3561.5,0.00113685]
[1641419825791,1.69982176,3562.1,3561.6,24.6631]
[1641419826090,1.21542176,3562.1,3561.6,24.9631]
[1641419826291,0.00454739,3562.5,3561.7,1.0]
[1641419826494,0.00454739,3562.5,3561.8,16.94171]
[1641419826694,0.00397896,3562.4,3561.9,1.0]
[1641419826900,0.00397896,3562.4,3561.9,1.66554899]
[1641419827094,0.00341054,3562.3,3562.1,16.8303305]
[1641419827495,4.04341021,3563.9,3563.8,1.07473261]
[1641419828095,4.04341021,3563.9,3562.5,4.38433812]
[1641419828294,4.04341021,3563.9,3562.5,1.3]
[1641419828497,0.01193689,3563.8,3562.5,1.3]
[1641419829022,1.0,3564.8,3562.4,4.63090114]
[1641419829023,0.00342719,3563.7,3562.4,4.63090114]
[1641419829227,0.00342719,3563.7,3562.6,0.00282547]
[1641419829424,0.00285877,3563.6,3562.7,0.70162]
[1641419829625,0.00285877,3563.6,3563.5,1.38451049]
[1641419829826,1.0,3564.8,3563.5,1.38451049]
[1641419830225,0.00797458,3564.5,3563.5,1.38451049]
[1641419830624,0.00740615,3564.4,3563.5,1.38451049]
[1641419830825,0.00740615,3564.4,3563.5,2.48115166]
[1641419831032,0.00683773,3564.3,3564.1,1.16991273]
[1641419831426,3.30626931,3564.2,3564.1,1.16991273]
[1641419832030,3.30626931,3564.2,3563.6,0.47341319]
[1641419832472,0.00570088,3564.1,3563.6,0.47341319]
[1641419832874,0.00513246,3564.0,3563.6,0.47341319]
[1641419833074,0.00513246,3564.0,3563.7,1.35760522]
[1641419833273,0.00456404,3563.9,3563.7,1.35760522]
[1641419833774,0.00399561,3563.8,3563.7,1.35760522]
[1641419836830,0.00399561,3563.8,3563.7,2.87253186]
[1641419840275,0.00399561,3563.8,3563.7,4.17253186]
[1641419840473,0.00399561,3563.8,3563.7,13.58808085]
[1641419840676,0.00399561,3563.8,3563.7,29.82808085]
[1641419840873,9.561e-05,3563.8,3563.7,29.82808085]
[1641419841073,1.71547615,3564.4,3564.0,1.40246]
[1641419841274,1.71547615,3564.4,3564.1,16.24]
[1641419841474,1.28766876,3564.8,3564.1,16.30554899]
[1641419841680,1.28766876,3564.8,3564.2,1.0]
[1641419841874,1.28766876,3564.8,3564.5,1.5]
[1641419842079,1.28766876,3564.8,3564.6,0.4674563]
[1641419842479,1.28766876,3564.8,3564.6,1.4674563]
[1641419842679,0.00909478,3565.4,3565.0,1.12120277]
[1641419843083,0.00852635,3565.3,3564.6,0.4674563]
[1641419843480,1.4208416,3565.8,3564.6,0.4674563]
[1641419843481,0.00795793,3565.2,3564.6,0.4674563]
[1641419843921,0.00738951,3565.1,3564.6,0.4674563]
[1641419844322,0.00682108,3565.0,3564.9,1.13204974]
[1641419847678,0.00682108,3565.0,3564.9,2.88597686]
[1641419848087,0.00682108,3565.0,3564.9,3.88597686]
[1641419848283,0.00682108,3565.0,3564.9,2.88597686]
[1641419848482,0.00682108,3565.0,3564.9,2.13204974]
[1641419848683,0.00682108,3565.0,3564.9,1.13204974]
[1641419849282,0.00682108,3565.0,3564.9,1.43204974]
[1641419849683,0.00682108,3565.0,3564.9,1.13204974]
[1641419849886,0.00682108,3565.0,3564.6,0.4674563]
[1641419850285,0.00625266,3564.9,3564.6,0.4674563]
[1641419850688,0.328,3565.6,3564.6,0.4674563]
[1641419850689,0.00568424,3564.8,3564.6,0.4674563]
[1641419850887,0.00568424,3564.8,3564.7,1.28306551]
[1641419851122,0.328,3565.6,3564.7,1.21294151]
[1641419851521,0.00795793,3565.2,3564.7,1.21294151]
[1641419851724,0.00795793,3565.2,3564.7,0.01092516]
[1641419851927,0.00097875,3564.9,3564.8,0.00092908]
[1641419852329,0.00723141,3564.9,3564.8,0.00092908]
[1641419852734,7.85,3564.8,3563.1,1.13039852]
[1641419852932,7.85,3564.8,3562.8,0.00168862]
[1641419852933,0.01216542,3564.1,3562.8,0.00168862]
[1641419853131,0.328,3564.0,3562.8,0.00168862]
[1641419853330,0.32913685,3564.0,3562.8,0.00168862]
[1641419853530,3.83784925,3564.0,3563.8,0.5012854]
[1641419853731,2.43435925,3564.0,3563.8,0.5012854]
[1641419855382,1.03087765,3564.0,3563.8,0.5012854]
[1641419857584,4.61534074,3563.9,3563.8,0.5012854]
[1641419857785,1.26534074,3563.9,3563.8,0.5012854]
[1641419858624,0.00113685,3564.0,3563.8,2.41349723]
[1641419859832,0.00113685,3564.0,3563.9,1.91221183]
[1641419862676,0.00211604,3564.0,3563.9,1.91221183]
[1641419863076,0.00211604,3564.0,3563.9,1.91319498]
[1641419863683,0.00211604,3564.0,3563.9,2.21319498]
[1641419863889,0.00211604,3564.0,3563.9,3.21319498]
[1641419868129,0.00211604,3564.0,3563.9,27.60319498]
[1641419869730,1.26534074,3565.3,3564.0,0.00098396]
[1641419869978,1.26534074,3565.3,3564.6,0.70129]
[1641419870178,0.00682108,3565.2,3564.6,0.70129]
[1641419870380,0.00682108,3565.2,3564.6,1.00129]
[1641419870582,0.00625266,3565.1,3564.6,0.3]
[1641419870781,0.00625266,3565.1,3564.7,1.71629027]
[1641419870982,0.00568423,3565.0,3564.7,1.71629027]
[1641419871183,0.00568423,3565.0,3564.7,2.31629027]
[1641419871382,0.00511581,3564.9,3564.7,4.2285021]
[1641419871582,0.00511581,3564.9,3564.8,8.75123]
[1641419871884,1.26534074,3565.7,3565.3,1.40332433]
[1641419872083,1.26534074,3565.7,3565.4,0.44825119]
[1641419872282,0.00909478,3565.6,3565.4,0.44825119]
[1641419872685,0.00852635,3565.5,3565.4,0.44825119]
[1641419873086,0.0096632,3565.5,3565.4,0.44825119]
[1641419873931,7.8596632,3565.5,3565.4,2.36046302]
[1641419874127,7.8596632,3565.5,3565.4,2.36135823]
[1641419874128,7.86053329,3565.5,3565.4,2.36135823]
[1641419874328,7.86053329,3565.5,3565.4,0.51870915]
[1641419874528,8.16053329,3565.5,3565.4,9.15e-06]
[1641419874929,7.86053329,3565.5,3564.4,1.5]
[1641419875427,0.00795793,3565.4,3564.4,1.5]
[1641419875629,0.00795793,3565.4,3564.5,1.03758291]
[1641419875829,1.3035807,3565.1,3564.5,1.03758291]
[1641419876031,1.3035807,3565.1,3564.6,0.53134762]
[1641419876228,0.00568423,3565.0,3564.6,0.53134762]
[1641419876430,0.00568423,3565.0,3564.6,1.53134762]
[1641419876629,0.00511581,3564.9,3564.6,0.53134762]
[1641419876829,0.00511581,3564.9,3564.6,1.53134762]
[1641419877029,0.00454739,3564.8,3564.6,1.53134762]
[1641419877378,0.70221529,3565.5,3564.6,0.53134762]
[1641419877379,0.00397896,3564.7,3564.6,0.53134762]
[1641419877573,0.00397896,3564.7,3564.6,1.53134762]
[1641419878173,0.00397896,3564.7,3564.5,2.16893053]
[1641419878374,0.00397896,3564.7,3564.6,0.49889767]
[1641419878576,0.70222349,3565.5,3564.6,0.49889767]
[1641419878774,0.00087009,3565.5,3564.6,0.49889767]
[1641419879074,0.00795793,3565.4,3564.6,1.49889767]
[1641419879274,0.00795793,3565.4,3564.6,0.49889767]
[1641419879574,0.0073895,3565.3,3564.6,1.49889767]
[1641419879774,0.0073895,3565.3,3564.6,0.49889767]
[1641419879975,0.00682108,3565.2,3564.6,1.49889767]
[1641419880174,0.00682108,3565.2,3564.6,0.49889767]
[1641419880375,0.00625266,3565.1,3564.6,1.49889767]
[1641419880675,0.00087009,3565.5,3564.6,1.49889767]
[1641419880676,0.00568423,3565.0,3564.6,1.49889767]
[1641419881127,0.00511581,3564.9,3564.6,1.49889767]
[1641419881526,0.00454739,3564.8,3564.6,0.49889767]
[1641419881824,0.00397896,3564.7,3564.6,1.49889767]
[1641419882430,0.00397896,3564.7,3564.6,0.49889767]
[1641419882630,0.00397896,3564.7,3564.6,1.49889767]
[1641419882832,0.65616695,3565.7,3564.6,1.49889767]
[1641419883032,0.65616695,3565.7,3564.6,1.20020767]
[1641419883233,0.00397897,3565.4,3564.6,2.20020767]
[1641419883635,0.00341054,3565.3,3564.6,2.20020767]
[1641419883832,0.54976729,3565.7,3564.6,2.20020767]
[1641419884233,0.00170528,3565.6,3564.7,0.00341054]
[1641419884633,0.00113685,3565.5,3564.7,0.00341054]
[1641419884880,0.00101327,3564.8,3564.7,0.00434242]
[1641419885481,0.00101327,3564.8,3564.7,8.42024242]
[1641419885882,0.00101327,3564.8,3564.7,9.72024242]
[1641419887086,0.62161172,3565.8,3565.1,0.70119]
[1641419887488,0.00113685,3565.7,3565.2,0.6083275]
[1641419887687,0.00113685,3565.7,3565.3,1.1833115]
[1641419887888,6.17,3565.4,3565.3,1.18444835]
[1641419888088,6.17,3565.4,3565.3,0.00113685]
[1641419888489,6.17,3565.4,3565.3,3.685e-05]
[1641419888734,6.17,3565.4,3565.2,0.01092315]
[1641419888937,0.70157,3565.0,3564.8,1.42411163]
[1641419889145,0.70157,3565.0,3564.3,2.72617334]
[1641419889146,0.80629786,3564.7,3564.3,2.72617334]
[1641419889335,0.01231252,3564.4,3563.9,3.31407062]
[1641419889535,7.86219457,3564.0,3563.9,3.31407062]
[1641419889736,7.8575,3563.9,3563.5,3.31752223]
[1641419889937,7.86210067,3563.6,3563.5,2.09132223]
[1641419890139,7.86210067,3563.6,3563.5,1.34132223]
[1641419890336,8.16210067,3563.6,3563.5,0.34132223]
[1641419890737,8.16210067,3563.6,3561.8,0.34132223]
[1641419890938,8.16210067,3563.6,3562.9,0.5250239]
[1641419890939,11.85540067,3563.6,3562.9,0.5250239]
[1641419891137,0.70188,3563.3,3562.9,0.5250239]
[1641419891339,0.70188,3563.3,3561.9,0.01932639]
[1641419891340,1.4038293,3563.2,3561.9,0.01932639]
[1641419891544,0.7019768,3562.6,3561.9,0.01932639]
[1641419891738,3.16711242,3563.1,3561.9,0.01932639]
[1641419891940,0.0126208,3562.8,3561.9,0.01932639]
[1641419892148,7.85,3562.6,3560.8,5.6444422]
[1641419892377,0.328,3562.7,3560.8,4.81458685]